bitfinex/quotes_SOLUSD_20250216
["timestamp","ask_amount","ask_price","bid_price","bid_amount"]
[1739699400331,13.42383626,193.2,193.19,0.063]
[1739699400545,13.42383626,193.2,193.19,0.0001]
[1739699403557,43.42383626,193.2,193.19,0.0001]
[1739699403852,5.1759,193.2,193.19,0.0001]
[1739699404049,5.1759,193.2,193.19,0.8801]
[1739699404255,12.9383,193.23,193.2,0.88]
[1739699404463,87.2754,193.22,193.2,0.88]
[1739699408266,82.1,193.21,193.2,0.88]
[1739699408458,87.2757,193.21,193.2,0.88]
[1739699416373,95.52363626,193.21,193.19,0.0001]
[1739699416550,8.24793626,193.2,193.19,0.0001]
[1739699416954,13.42383626,193.2,193.19,0.0001]
[1739699418664,20.0,193.18,193.17,0.0001]
[1739699418848,28.24793626,193.18,193.17,0.0001]
[1739699419667,33.42443626,193.18,193.17,0.0001]
[1739699425680,63.42443626,193.18,193.17,0.0001]
[1739699428962,33.42443626,193.18,193.17,0.0001]
[1739699430480,25.1765,193.18,193.17,0.0001]
[1739699433364,0.03,193.2,193.17,8.24803626]
[1739699433570,0.03,193.2,193.19,9.12793626]
[1739699438075,82.13,193.2,193.19,9.12793626]
[1739699443985,0.03,193.2,193.19,9.12793626]
[1739699458037,0.03,193.2,193.19,0.88]
[1739699461304,0.03,193.2,193.19,9.12793626]
[1739699465049,0.03,193.2,193.19,27.71598479]
[1739699465613,0.03,193.2,193.19,22.53978479]
[1739699468950,0.03,193.2,193.19,22.60278479]
[1739699470350,0.03,193.2,193.19,27.77898479]
[1739699470547,0.03,193.2,193.19,22.60278479]
[1739699475857,0.03,193.2,193.19,27.77898479]
[1739699483636,0.03,193.2,193.19,35.64178479]
[1739699488362,0.03,193.2,193.19,22.60278479]
[1739699489236,0.03,193.2,193.19,27.77898479]
[1739699489438,0.03,193.22,193.21,0.88]
[1739699489639,0.03,193.25,193.24,34.29184853]
[1739699489846,82.1,193.33,193.25,13.41184853]
[1739699490044,0.03,193.35,193.33,14.29184853]
[1739699492250,8.27793626,193.35,193.29,0.88]
[1739699492555,5.1725,193.33,193.3,0.88]
[1739699493165,82.1,193.32,193.27,0.88]
[1739699493342,8.24793626,193.31,193.27,0.88]
[1739699493754,8.24793626,193.31,193.28,13.41184853]
[1739699494161,90.34793626,193.32,193.28,14.29184853]
[1739699494861,5.173,193.31,193.28,14.29184853]
[1739699495063,13.42093626,193.31,193.25,0.88]
[1739699495263,8.24793626,193.3,193.24,0.88]
[1739699495443,8.24793626,193.3,193.27,13.41184853]
[1739699496289,5.173,193.31,193.28,0.88]
[1739699497570,82.1,193.3,193.28,0.88]
[1739699497760,82.1,193.3,193.27,0.88]
[1739699498084,82.1,193.3,193.26,14.29184853]
[1739699498264,82.1,193.3,193.24,9.12793626]
[1739699498578,90.34793626,193.3,193.26,0.88]
[1739699498754,5.1735,193.29,193.26,0.88]
[1739699499288,82.1,193.3,193.28,0.88]
[1739699499706,87.2733,193.3,193.28,0.88]
[1739699500671,82.1,193.3,193.29,14.29184853]
[1739699500876,87.2733,193.3,193.29,14.29184853]
[1739699503475,87.2733,193.3,193.29,13.41184853]
[1739699507181,82.1,193.3,193.29,22.53978479]
[1739699507385,87.2725,193.33,193.29,22.53978479]
[1739699507706,87.2725,193.33,193.32,13.41184853]
[1739699508665,82.1,193.33,193.32,14.29184853]
[1739699509288,87.2725,193.33,193.32,14.29184853]
[1739699511273,82.1,193.33,193.32,14.29184853]
[1739699511478,82.1,193.33,193.32,22.53978479]
[1739699515265,80.59852077,193.33,193.32,22.53978479]
[1739699516910,0.03,193.35,193.32,22.53978479]
[1739699517083,0.03,193.35,193.34,21.65978479]
[1739699517391,0.03,193.35,193.34,14.29184853]
[1739699517695,5.2019,193.35,193.34,13.41184853]
[1739699519704,0.03,193.35,193.34,13.41184853]
[1739699521283,80.62852077,193.35,193.34,14.29184853]
[1739699521800,85.80042077,193.35,193.34,13.41184853]
[1739699522100,85.80042077,193.35,193.34,14.29184853]
[1739699522300,80.62852077,193.35,193.34,14.29184853]
[1739699523694,80.62852077,193.35,193.34,22.53978479]
[1739699524399,0.03,193.35,193.34,22.53978479]
[1739699524602,0.03,193.35,193.34,27.71198479]
[1739699524779,0.03,193.35,193.34,35.54978479]
[1739699534096,0.03,193.35,193.34,35.54978479]
[1739699536213,0.03,193.39,193.38,0.88]
[1739699536397,0.03,193.39,193.38,9.12793626]
[1739699536598,0.03,193.39,193.38,22.53978479]
[1739699539295,0.03,193.39,193.38,27.71088479]
[1739699539496,0.03,193.39,193.38,60.70262983]
[1739699539723,0.03,193.39,193.38,27.71088479]
[1739699540998,0.03,193.39,193.38,60.70262983]
[1739699544827,0.03,193.39,193.38,27.71088479]
[1739699546430,0.03,193.39,193.38,60.70262983]
[1739699550223,0.03,193.39,193.38,61.70262983]
[1739699550427,0.03,193.4,193.39,22.53978479]
[1739699550810,0.03,193.4,193.39,24.16378479]
[1739699551019,0.03,193.4,193.39,29.33458479]
[1739699551324,0.03,193.42,193.41,33.41184853]
[1739699551523,0.03,193.42,193.41,41.65978479]
[1739699552256,0.03,193.42,193.41,42.53978479]
[1739699552938,0.03,193.42,193.41,47.71008479]
[1739699555118,0.03,193.43,193.42,14.29184853]
[1739699555318,0.03,193.43,193.42,23.53978479]
[1739699557122,0.03,193.43,193.42,28.70978479]
[1739699561463,0.03,193.43,193.42,27.70978479]
[1739699561633,0.03,193.43,193.42,22.53978479]
[1739699562932,8.24793626,193.49,193.43,13.41184853]
[1739699562933,7.33793626,193.49,193.43,13.41184853]
[1739699563135,80.59852077,193.48,193.43,13.41184853]
[1739699563333,80.59852077,193.48,193.45,13.41184853]
[1739699564259,5.1687,193.47,193.45,13.41184853]
[1739699564636,5.1687,193.47,193.45,14.29184853]
[1739699566256,80.59852077,193.46,193.45,14.29184853]
[1739699570151,80.59852077,193.46,193.45,22.53978479]
[1739699570661,0.03,193.48,193.47,14.29184853]
[1739699570854,0.03,193.48,193.47,22.53978479]
[1739699580974,0.03,193.48,193.47,14.29184853]
[1739699582277,0.03,193.48,193.47,13.41184853]
[1739699583380,0.03,193.48,193.47,14.29184853]
[1739699584382,0.03,193.48,193.47,22.53978479]
[1739699586549,0.03,193.48,193.47,13.41184853]
[1739699587471,0.03,193.48,193.45,0.063]
[1739699588055,8.24793626,193.46,193.45,0.063]
[1739699588257,13.41693626,193.46,193.45,0.063]
[1739699593681,5.169,193.46,193.45,0.063]
[1739699594368,13.41693626,193.46,193.45,0.063]
[1739699595482,13.41693626,193.46,193.45,0.0001]
[1739699595680,14.93333626,193.46,193.45,0.0001]
[1739699601997,14.96333626,193.46,193.45,0.0001]
[1739699608196,13.44693626,193.46,193.45,0.0001]
[1739699608886,5.199,193.46,193.45,0.0001]
[1739699613000,8.27793626,193.46,193.45,0.0001]
[1739699614991,13.44693626,193.46,193.45,0.0001]
[1739699617499,13.56693626,193.46,193.45,0.0001]
[1739699619591,13.44693626,193.46,193.45,0.0001]
[1739699619901,5.199,193.46,193.45,0.0001]
[1739699620498,30.03,193.46,193.45,22.53988479]
[1739699620691,0.03,193.46,193.45,22.53988479]
[1739699620898,0.03,193.46,193.45,28.59268479]
[1739699623521,0.03,193.46,193.45,20.34474853]
[1739699624205,0.03,193.46,193.45,28.59268479]
[1739699627323,0.03,193.46,193.45,20.34474853]
[1739699628700,0.03,193.46,193.45,35.31118479]
[1739699639018,0.03,193.48,193.47,14.29663626]
[1739699640117,0.03,193.48,193.47,27.70848479]
[1739699640304,0.03,193.48,193.47,28.70848479]
[1739699641222,0.03,193.48,193.47,60.70022983]
[1739699644527,0.03,193.48,193.47,27.70848479]
[1739699645419,0.03,193.48,193.47,61.70022983]
[1739699645922,0.03,193.49,193.48,61.69992983]
[1739699647022,0.03,193.5,193.49,15.29184853]
[1739699647229,0.03,193.5,193.49,56.53152983]
[1739699648913,82.1,193.6,193.54,0.88]
[1739699649119,82.1,193.6,193.54,22.53978479]
[1739699650605,5.1647,193.62,193.54,22.53978479]
[1739699650804,5.1944,193.63,193.54,27.70658479]
[1739699652508,0.03,193.63,193.54,27.70658479]
[1739699655328,0.03,193.63,193.62,0.88]
[1739699655506,0.03,193.63,193.62,22.53978479]
[1739699664938,0.03,193.63,193.62,27.70448479]
[1739699670247,0.03,193.66,193.65,0.88]
[1739699670538,0.03,193.66,193.65,22.53978479]
[1739699670743,0.03,193.75,193.74,0.88]
[1739699670942,0.03,193.75,193.74,14.29184853]
[1739699671245,5.1912,193.75,193.74,14.29184853]
[1739699671732,0.03,193.75,193.73,0.88]
[1739699674553,0.03,193.75,193.74,0.88]
[1739699676745,0.03,193.75,193.73,0.88]
[1739699677146,0.03,193.75,193.72,0.88]
[1739699677552,8.27793626,193.75,193.71,0.88]
[1739699677740,8.24793626,193.74,193.71,0.88]
[1739699678052,5.1618,193.73,193.71,0.88]
[1739699679153,5.1618,193.73,193.7,0.88]
[1739699679653,5.1618,193.73,193.71,0.88]
[1739699680657,5.1618,193.73,193.72,0.88]
[1739699680961,5.1618,193.73,193.71,0.88]
[1739699681670,5.13694968,193.73,193.71,0.88]
[1739699681868,5.13694968,193.73,193.72,13.41184853]
[1739699682154,87.2615,193.74,193.72,14.29184853]
[1739699682366,82.1,193.74,193.73,0.88]
[1739699682563,82.1,193.74,193.73,14.29184853]
[1739699682737,82.1,193.74,193.73,22.53978479]
[1739699683252,82.1,193.74,193.73,14.29184853]
[1739699684536,82.1,193.74,193.73,22.53978479]
[1739699684860,0.03,193.75,193.74,13.41184853]
[1739699685054,0.03,193.75,193.74,0.88]
[1739699685234,0.03,193.75,193.74,14.29184853]
[1739699685635,5.1912,193.75,193.74,14.29184853]
[1739699686147,0.03,193.75,193.74,14.29184853]
[1739699686938,0.03,193.75,193.72,0.88]
[1739699687370,0.03,193.75,193.71,0.88]
[1739699687659,0.03,193.75,193.7,14.29184853]
[1739699687963,82.13,193.75,193.7,14.29184853]
[1739699688163,5.1615,193.74,193.72,0.88]
[1739699688534,5.1615,193.74,193.71,0.88]
[1739699688738,5.1615,193.74,193.7,14.29184853]
[1739699688952,13.40943626,193.74,193.7,0.88]
[1739699690153,5.1615,193.74,193.72,0.88]
[1739699691765,87.2913,193.75,193.73,0.88]
[1739699693161,20.0,193.71,193.66,0.943]
[1739699693368,90.34793626,193.7,193.66,0.943]
[1739699694647,8.24793626,193.67,193.66,0.063]
[1739699695483,13.41133626,193.67,193.66,0.063]
[1739699708480,13.41133626,193.67,193.66,0.0001]
[1739699709864,43.41133626,193.67,193.66,0.0001]
[1739699714462,13.41133626,193.67,193.66,0.0001]
[1739699719477,5.1634,193.67,193.66,0.0001]
[1739699722670,5.1934,193.67,193.66,0.0001]
[1739699723372,0.03,193.67,193.66,22.53988479]
[1739699723903,0.03,193.67,193.66,14.29194853]
[1739699730393,0.03,193.67,193.66,22.53988479]
[1739699730576,0.03,193.67,193.66,27.70348479]
[1739699743485,0.03,193.67,193.66,28.70348479]
[1739699743684,0.03,193.73,193.72,0.88]
[1739699743883,0.03,193.73,193.72,22.53978479]
[1739699745411,0.03,193.73,193.72,14.29184853]
[1739699756023,0.03,193.73,193.72,13.41184853]
[1739699757125,0.03,193.73,193.71,0.88]
[1739699757310,0.03,193.73,193.7,0.88]
[1739699758302,0.03,193.73,193.71,13.41184853]
[1739699759922,0.03,193.73,193.71,14.29184853]
[1739699760224,0.03,193.73,193.7,0.88]
[1739699760423,0.03,193.73,193.69,0.88]
[1739699760627,8.24793626,193.72,193.68,0.88]
[1739699760918,8.24793626,193.72,193.69,0.88]
[1739699761306,8.27793626,193.73,193.69,0.88]
[1739699761508,0.03,193.73,193.7,0.88]
[1739699763309,8.27793626,193.73,193.69,0.88]
[1739699763509,5.162,193.72,193.69,0.88]
[1739699764124,13.40993626,193.72,193.67,14.29184853]
[1739699764324,8.24793626,193.71,193.67,14.29184853]
[1739699765234,5.1631,193.68,193.66,0.8801]
[1739699765439,5.1631,193.68,193.66,0.0001]
[1739699765610,13.41103626,193.68,193.66,0.0001]
[1739699766841,8.24793626,193.67,193.66,0.0001]
[1739699767332,13.41103626,193.68,193.66,0.0001]
[1739699768024,8.24793626,193.67,193.66,0.0001]
[1739699769213,13.41133626,193.67,193.66,0.0001]
[1739699769828,5.1634,193.67,193.66,0.0001]
[1739699770922,87.2631,193.69,193.66,0.0001]
[1739699771625,5.1623,193.72,193.69,0.88]
[1739699772730,5.1623,193.72,193.68,0.88]
[1739699772925,13.41023626,193.72,193.68,13.41184853]
[1739699773331,8.24793626,193.71,193.66,0.8801]
[1739699773533,8.24793626,193.7,193.66,0.8801]
[1739699773731,8.24793626,193.7,193.66,13.41194853]
[1739699774240,8.24793626,193.7,193.66,0.0001]
[1739699774550,8.24793626,193.68,193.66,0.0001]
[1739699775340,5.1623,193.71,193.66,9.12803626]
[1739699775543,5.1623,193.71,193.69,0.88]
[1739699775868,5.192,193.73,193.71,0.88]
[1739699776230,0.03,193.73,193.71,0.88]
[1739699777240,0.03,193.73,193.72,0.88]
[1739699779633,0.03,193.73,193.71,0.88]
[1739699779832,0.03,193.73,193.7,0.88]
[1739699782133,0.03,193.73,193.72,0.88]
[1739699785037,0.03,193.73,193.72,14.29184853]
[1739699786224,0.03,193.73,193.72,22.53978479]
[1739699787548,0.03,193.73,193.72,27.70178479]
[1739699788858,0.03,193.73,193.72,22.53978479]
[1739699790535,0.03,193.73,193.72,14.29184853]
[1739699791756,0.03,193.73,193.72,22.53978479]
[1739699804157,0.03,193.73,193.72,27.70178479]
[1739699804348,0.03,193.73,193.72,29.23548479]
[1739699808162,0.03,193.73,193.72,30.23548479]
[1739699808351,0.03,193.75,193.74,20.88]
[1739699808551,0.03,193.75,193.74,42.53978479]
[1739699809663,0.03,193.75,193.74,47.70128479]
[1739699812161,0.03,193.75,193.74,27.70128479]
[1739699828778,0.03,193.75,193.74,22.53978479]
[1739699830682,0.03,193.75,193.74,27.70128479]
[1739699844301,0.03,193.75,193.74,22.53978479]
[1739699845392,0.03,193.75,193.74,27.70128479]
[1739699845999,0.03,193.75,193.74,22.53978479]
[1739699848502,0.03,193.75,193.74,27.70128479]
[1739699848699,0.03,193.75,193.74,22.53978479]
[1739699849278,0.03,193.75,193.74,14.29184853]
[1739699851202,0.03,193.75,193.74,22.53978479]
[1739699857115,0.03,193.75,193.73,0.943]
[1739699859220,8.24793626,193.74,193.73,0.063]
[1739699860409,13.40943626,193.74,193.73,0.063]
[1739699865113,95.50943626,193.74,193.73,0.063]
[1739699866415,87.2615,193.74,193.73,0.063]
[1739699866918,87.2615,193.74,193.73,0.943]
[1739699867098,5.1615,193.74,193.73,0.943]
[1739699867298,0.03,193.75,193.73,0.943]
[1739699867495,0.03,193.75,193.74,9.12793626]
[1739699869203,0.03,193.75,193.74,0.88]
[1739699870615,0.03,193.75,193.73,0.943]
[1739699872228,0.03,193.75,193.73,13.47484853]
[1739699872410,0.03,193.75,193.73,0.063]
[1739699876820,0.03,193.75,193.73,0.943]
[1739699877203,0.03,193.75,193.73,0.063]
[1739699877603,0.03,193.75,193.73,0.943]
[1739699881427,0.03,193.75,193.74,0.88]
[1739699883022,0.03,193.75,193.73,0.943]
[1739699883412,0.03,193.75,193.74,0.88]
[1739699883606,0.03,193.75,193.74,14.29184853]
[1739699883809,0.03,193.75,193.74,22.53978479]
[1739699884028,0.03,193.75,193.74,14.29184853]
[1739699885517,0.03,193.75,193.74,22.53978479]
[1739699888340,0.03,193.75,193.74,27.70128479]
[1739699891934,0.03,193.75,193.74,34.19788479]
[1739699898745,0.03,193.75,193.74,29.03638479]
[1739699899939,0.03,193.75,193.74,22.53978479]
[1739699907742,0.03,193.75,193.74,27.70128479]
[1739699911064,0.03,193.75,193.74,22.53978479]
[1739699915274,0.03,193.75,193.74,27.70128479]
[1739699960089,0.03,193.83,193.74,27.70128479]
[1739699960422,0.03,193.83,193.82,14.29184853]
[1739699961408,0.03,193.83,193.82,22.53978479]
[1739699966308,0.03,193.83,193.82,14.29184853]
[1739699967712,0.03,193.83,193.82,22.53978479]
[1739699970728,0.03,193.83,193.82,27.69918479]
[1739699971917,0.03,193.83,193.82,22.53978479]
[1739699985235,0.03,193.83,193.82,14.29184853]
[1739699985737,0.03,193.83,193.82,0.88]
[1739699989861,0.03,193.83,193.82,14.29184853]
[1739699990931,0.03,193.83,193.82,0.88]
[1739699991538,8.27793626,193.83,193.82,0.88]
[1739699992463,13.43703626,193.83,193.82,0.88]
[1739699992961,5.1891,193.83,193.82,0.88]
[1739699998449,0.03,193.83,193.82,0.88]
[1739699999078,0.03,193.83,193.8,0.88]
[1739699999368,0.03,193.83,193.81,0.88]
[1739700001070,0.03,193.83,193.82,0.88]
[1739700001854,0.03,193.83,193.81,0.88]
[1739700002872,8.24793626,193.82,193.78,0.88]
[1739700003053,8.24793626,193.79,193.75,0.943]
[1739700003247,8.24793626,193.78,193.76,0.88]
[1739700003454,28.24793626,193.79,193.76,0.88]
[1739700004353,28.24793626,193.79,193.77,0.88]
[1739700004679,25.1602,193.79,193.78,0.88]
[1739700006074,33.40813626,193.79,193.76,0.88]
[1739700006275,8.24793626,193.78,193.76,0.88]
[1739700006575,33.40813626,193.79,193.76,0.88]
[1739700007282,33.40813626,193.79,193.75,0.943]
[1739700008175,33.40813626,193.79,193.76,0.88]
[1739700008771,33.40813626,193.79,193.75,0.943]
[1739700009277,8.24793626,193.78,193.75,0.063]
[1739700009472,8.24793626,193.76,193.75,0.063]
[1739700011483,13.40893626,193.76,193.75,0.063]
[1739700013889,5.161,193.76,193.75,0.063]
[1739700015161,32.9005,193.79,193.75,0.943]
[1739700015162,5.1607,193.77,193.75,0.943]
[1739700015875,5.1604,193.78,193.75,0.943]
[1739700016390,25.1602,193.79,193.78,0.88]
[1739700016567,5.1602,193.79,193.78,0.88]
[1739700017495,87.2599,193.81,193.79,0.88]
[1739700017860,87.2599,193.81,193.8,0.88]
[1739700018062,5.1599,193.81,193.8,0.88]
[1739700018368,0.03,193.83,193.82,0.88]
[1739700018868,0.03,193.83,193.81,0.88]
[1739700019494,5.1892,193.83,193.8,0.88]
[1739700019992,5.1892,193.83,193.82,0.88]
[1739700022492,0.03,193.83,193.82,0.88]
[1739700030398,0.03,193.83,193.82,0.88]
[1739700044732,0.03,193.83,193.82,14.29184853]
[1739700045531,0.03,193.83,193.82,22.53978479]
[1739700050821,0.03,193.83,193.82,14.29184853]
[1739700051726,0.03,193.83,193.82,0.88]
[1739700053230,0.03,193.83,193.81,0.88]
[1739700053605,0.03,193.83,193.79,13.41184853]
[1739700053606,0.03,193.83,193.8,0.88]
[1739700053913,0.03,193.83,193.81,0.88]
[1739700054220,0.03,193.83,193.8,0.88]
[1739700054416,0.03,193.83,193.81,0.88]
[1739700054605,5.1891,193.83,193.82,0.88]
[1739700057933,0.03,193.83,193.82,0.88]
[1739700060017,0.03,193.83,193.8,0.88]
[1739700060513,0.03,193.83,193.79,13.41184853]
[1739700060514,8.27793626,193.83,193.79,0.88]
[1739700060825,8.24793626,193.82,193.79,0.88]
[1739700061243,8.24793626,193.81,193.78,0.88]
[1739700061444,8.24793626,193.79,193.75,0.943]
[1739700061736,8.24793626,193.79,193.77,0.88]
[1739700061943,8.24793626,193.8,193.77,0.88]
[1739700062314,5.1602,193.79,193.77,0.88]
[1739700064318,5.1602,193.79,193.76,0.88]
[1739700064523,5.1602,193.79,193.75,0.943]
[1739700065231,26.30863626,193.79,193.75,0.063]
[1739700065431,5.1607,193.77,193.75,0.063]
[1739700065637,13.40863626,193.77,193.75,0.063]
[1739700066152,8.24793626,193.76,193.75,0.063]
[1739700067734,33.40893626,193.76,193.75,0.063]
[1739700070322,13.52893626,193.76,193.75,0.0001]
[1739700070520,20.0,193.74,193.73,0.0001]
[1739700070822,28.24793626,193.74,193.73,0.0001]
[1739700071837,63.40943626,193.74,193.73,0.0001]
[1739700072819,25.1615,193.74,193.73,0.0001]
[1739700073033,25.1615,193.74,193.73,0.8801]
[1739700073537,5.1604,193.78,193.74,0.88]
[1739700073732,5.1604,193.78,193.75,0.88]
[1739700074038,5.1604,193.78,193.74,0.88]
[1739700074240,5.1604,193.78,193.75,0.88]
[1739700074620,5.1604,193.78,193.76,0.88]
[1739700075027,5.1604,193.78,193.75,0.88]
[1739700075428,5.1604,193.78,193.76,0.88]
[1739700076050,5.1902,193.79,193.76,0.88]
[1739700076221,5.1902,193.79,193.77,0.88]
[1739700077346,5.1902,193.79,193.76,0.88]
[1739700077533,5.1902,193.79,193.77,0.88]
[1739700080026,0.03,193.79,193.77,0.88]
[1739700081147,0.03,193.79,193.76,0.88]
[1739700081548,0.03,193.79,193.77,0.88]
[1739700082222,5.1902,193.79,193.77,0.88]
[1739700083450,0.03,193.79,193.77,0.88]
[1739700083751,0.03,193.79,193.76,0.88]
[1739700084045,8.27793626,193.79,193.75,0.88]
[1739700084261,8.27793626,193.79,193.74,0.88]
[1739700084430,8.24793626,193.77,193.73,0.8801]
[1739700084751,8.24793626,193.77,193.74,0.88]
[1739700084966,8.24793626,193.77,193.73,0.8801]
[1739700085749,5.161,193.76,193.73,0.8801]
[1739700085953,5.161,193.76,193.75,0.88]
[1739700086632,5.1604,193.78,193.77,0.88]
[1739700088049,5.1902,193.79,193.77,0.88]
[1739700090158,0.03,193.79,193.77,0.88]
[1739700091140,0.03,193.79,193.76,0.88]
[1739700093138,0.03,193.79,193.77,0.88]
[1739700103677,0.03,193.79,193.78,0.88]
[1739700105379,0.03,193.79,193.77,0.88]
[1739700105679,8.24793626,193.78,193.75,0.063]
[1739700106051,8.24793626,193.77,193.75,0.063]
[1739700106251,28.24793626,193.78,193.75,0.063]
[1739700106667,0.03,193.79,193.76,0.88]
[1739700106859,0.03,193.79,193.78,0.88]
[1739700109362,0.03,193.79,193.78,22.53978479]
[1739700115181,0.03,193.79,193.78,27.70018479]
[1739700115865,0.03,193.79,193.78,27.64969629]
[1739700125293,0.03,193.79,193.78,28.64969629]
[1739700125703,0.03,193.79,193.78,27.64969629]
[1739700132506,0.03,193.79,193.78,22.48929629]
[1739700132709,0.03,193.79,193.78,14.24136003]
[1739700133096,0.03,193.79,193.78,22.48929629]
[1739700134399,0.03,193.79,193.78,27.64969629]
[1739700141698,0.0001,193.79,193.78,27.64969629]
[1739700143797,0.0001,193.79,193.78,27.71269629]
[1739700154334,0.03,193.83,193.82,21.65978479]
[1739700155430,0.03,193.83,193.82,26.81918479]
[1739700157237,0.03,193.83,193.82,27.64869629]
[1739700157454,0.03,193.83,193.82,22.48929629]
[1739700159445,0.03,193.83,193.82,14.24136003]
[1739700159737,0.03,193.83,193.82,22.48929629]
[1739700160119,0.03,193.83,193.82,27.64869629]
[1739700162145,0.03,193.83,193.82,22.48929629]
[1739700163351,0.03,193.83,193.82,27.64869629]
[1739700163848,0.03,193.83,193.82,22.48929629]
[1739700165353,0.03,193.83,193.82,27.64869629]
[1739700166544,0.03,193.83,193.82,9.07744776]
[1739700170946,0.03,193.83,193.82,0.8295115]
[1739700173552,0.03,193.83,193.82,5.9889115]
[1739700174851,0.03,193.83,193.82,27.64869629]
[1739700190769,0.03,193.83,193.82,60.64044133]
[1739700191266,0.03,193.83,193.82,27.64869629]
[1739700193860,0.03,193.83,193.82,14.24136003]
[1739700194260,0.03,193.83,193.82,0.8295115]
[1739700198778,0.03,193.83,193.81,0.8295115]
[1739700198980,8.24793626,193.82,193.81,0.8295115]
[1739700199474,8.27793626,193.83,193.81,0.8295115]
[1739700200489,5.1594,193.82,193.81,0.8295115]
[1739700201257,5.1594,193.82,193.79,0.8925115]
[1739700201577,13.40733626,193.82,193.79,0.8925115]
[1739700201981,5.1594,193.82,193.8,0.8295115]
[1739700204583,20.03,193.83,193.81,0.8295115]
[1739700206294,0.03,193.83,193.81,0.8295115]
[1739700206473,5.1892,193.83,193.81,0.8295115]
[1739700208666,0.03,193.83,193.82,0.8295115]
[1739700211286,0.03,193.83,193.81,0.8295115]
[1739700211494,8.24793626,193.82,193.79,0.063]
[1739700211663,8.24793626,193.81,193.79,0.063]
[1739700212063,8.24793626,193.81,193.8,0.8295115]
[1739700212267,8.24793626,193.82,193.8,0.8295115]
[1739700212689,8.24793626,193.82,193.79,0.8925115]
[1739700213572,5.1596,193.81,193.8,0.8295115]
[1739700214071,5.1596,193.81,193.79,0.063]
[1739700214407,8.24793626,193.8,193.79,0.063]
[1739700214770,0.03,193.83,193.82,0.8295115]
[1739700214967,0.03,193.83,193.82,34.24136003]
[1739700215405,0.03,193.83,193.82,35.80816003]
[1739700215564,0.03,193.83,193.82,40.96756003]
[1739700216180,0.03,193.87,193.86,0.8295115]
[1739700216372,0.03,193.87,193.86,22.48929629]
[1739700217699,0.03,193.87,193.86,27.64759629]
[1739700222838,0.03,193.87,193.86,22.48929629]
[1739700225307,0.03,193.87,193.86,27.64759629]
[1739700226431,0.03,193.87,193.86,22.48929629]
[1739700227224,0.03,193.87,193.86,27.64759629]
[1739700254345,0.03,193.87,193.86,22.48929629]
[1739700254651,0.03,193.87,193.86,27.64759629]
[1739700261071,0.03,193.87,193.86,22.48929629]
[1739700261234,0.03,193.87,193.86,0.8295115]
[1739700264459,8.27793626,193.87,193.84,0.8295115]
[1739700264836,8.27793626,193.87,193.85,0.8295115]
[1739700265138,8.27793626,193.87,193.84,0.8295115]
[1739700265632,8.27793626,193.87,193.86,0.8295115]
[1739700265836,8.27793626,193.87,193.84,0.8295115]
[1739700266352,5.1583,193.86,193.84,0.8295115]
[1739700266541,5.1583,193.86,193.85,0.8295115]
[1739700267464,5.1583,193.86,193.83,0.8925115]
[1739700268756,5.1583,193.86,193.84,0.8295115]
[1739700269151,5.1583,193.86,193.85,0.8295115]
[1739700269458,5.1583,193.86,193.84,0.8295115]